bitfinex-derivatives/quotes_BNBF0:USTF0_20250425
["timestamp","ask_amount","ask_price","bid_price","bid_amount"]
[1745572214447,1.18584709,609.86,607.93,0.30176091]
[1745572214647,1.18584709,609.86,607.92,0.28593496]
[1745572214848,1.18584709,609.86,607.93,0.30176091]
[1745572215147,1.18584709,609.85,607.93,0.30176091]
[1745572215448,1.18584709,609.85,607.92,0.28593496]
[1745572215649,1.18584709,609.84,607.93,0.30175951]
[1745572215852,1.4717844,609.84,607.93,0.30175951]
[1745572216154,1.18584709,609.83,607.93,0.30175951]
[1745572216950,1.18584709,609.82,607.93,0.30175951]
[1745572217151,1.18584709,609.81,607.94,0.30175973]
[1745572217351,1.18584709,609.81,607.93,0.30175973]
[1745572217546,1.18584709,609.8,607.93,0.30175973]
[1745572217949,0.28593731,609.84,607.93,0.30175973]
[1745572217950,1.18584709,609.79,607.93,0.30175973]
[1745572218346,1.18584709,609.78,607.93,0.30175973]
[1745572218750,1.18584709,609.77,607.93,0.30175973]
[1745572219148,1.18584709,609.76,607.93,0.30175973]
[1745572219854,1.18584709,609.75,607.93,0.30175973]
[1745572220055,1.18584709,609.74,607.93,0.30175973]
[1745572220355,1.18584709,609.73,607.93,0.30175973]
[1745572220954,1.18584709,609.72,607.93,0.30175973]
[1745572221450,1.18584709,609.71,607.93,0.30175973]
[1745572222055,1.18584709,609.7,607.93,0.30175973]
[1745572222455,1.18584709,609.69,607.93,0.30175973]
[1745572223156,1.18584709,609.68,607.93,0.30175973]
[1745572223355,1.18584709,609.68,607.92,0.28593496]
[1745572223555,1.18584709,609.68,607.93,0.30176158]
[1745572223758,1.47180907,609.67,607.92,0.28596198]
[1745572223957,1.47180907,609.67,607.93,0.30176158]
[1745572224358,1.18584709,609.66,607.93,0.30176158]
[1745572224659,1.18584709,609.65,607.93,0.30176158]
[1745572224860,1.18584709,609.65,607.92,0.28596198]
[1745572225158,1.18584709,609.64,607.93,0.30176631]
[1745572225454,1.18584709,609.63,607.93,0.30176631]
[1745572225860,1.18584709,609.62,607.93,0.30176631]
[1745572226160,1.18584709,609.61,607.93,0.30176631]
[1745572226661,1.18584709,609.6,607.93,0.30176631]
[1745572227261,1.18584709,609.59,607.93,0.30176631]
[1745572227760,1.18584709,609.58,607.93,0.30176631]
[1745572228363,1.18584709,609.57,607.93,0.30176631]
[1745572228763,1.18584709,609.56,607.93,0.30176631]
[1745572229762,1.18584709,609.55,607.94,0.30173762]
[1745572229964,1.18584709,609.55,607.95,0.30173762]
[1745572230163,1.18584709,609.55,607.93,0.30173762]
[1745572230366,1.18584709,609.55,607.94,0.30173762]
[1745572230665,1.18584709,609.54,607.95,0.30173762]
[1745572230963,1.18584709,609.54,607.96,0.30173762]
[1745572231165,1.18584709,609.53,607.92,0.28596198]
[1745572231362,1.18584709,609.53,607.93,0.30174215]
[1745572231560,1.18584709,609.52,607.99,1.04107991]
[1745572231763,1.18584709,609.52,608.0,0.30174215]
[1745572231959,1.18584709,609.51,608.0,0.30174215]
[1745572232859,0.28595963,609.58,608.0,0.30174215]
[1745572232860,1.18584709,609.5,608.0,0.30174215]
[1745572233568,1.18584709,609.49,608.0,0.30174215]
[1745572233760,1.18584709,609.48,608.0,0.30174215]
[1745572234066,1.18584709,609.47,608.18,1.04107991]
[1745572234265,1.18584709,609.47,608.19,0.30174215]
[1745572234562,1.18584709,609.46,608.19,0.30174215]
[1745572234866,1.18584709,609.45,608.19,0.30174215]
[1745572235265,1.18584709,609.44,608.19,0.30174215]
[1745572235764,1.18584709,609.44,608.2,0.30175598]
[1745572235966,1.18584709,609.44,608.21,0.30175598]
[1745572236164,1.18584709,609.44,608.18,1.04107991]
[1745572236165,1.18584709,609.43,608.23,1.04107991]
[1745572236360,1.18584709,609.43,608.24,0.30175598]
[1745572237066,1.18584709,609.43,608.23,1.04107991]
[1745572237267,1.18584709,609.42,608.23,1.04107991]
[1745572237664,1.18584709,609.41,608.23,1.04107991]
[1745572238265,1.18584709,609.4,608.23,1.04107991]
[1745572238765,1.18584709,609.39,608.23,1.04107991]
[1745572239166,1.18584709,609.38,608.23,1.04107991]
[1745572239567,1.18584709,609.37,608.23,1.04107991]
[1745572240167,1.18584709,609.36,608.23,1.04107991]
[1745572240463,1.18584709,609.36,608.19,1.04107991]
[1745572240669,1.18584709,609.35,608.2,0.30175843]
[1745572240967,1.18584709,609.34,608.2,0.30175843]
[1745572241468,1.18584709,609.33,608.2,0.30175843]
[1745572241968,1.18584709,609.33,608.21,0.30175569]
[1745572242167,1.18584709,609.33,608.2,0.30175569]
[1745572242364,1.18584709,609.32,608.2,0.30175569]
[1745572242663,1.18584709,609.32,608.22,1.04107991]
[1745572243066,1.18584709,609.31,608.22,1.04107991]
[1745572243570,1.18584709,609.3,608.22,1.04107991]
[1745572243967,1.18584709,609.29,608.23,0.30175559]
[1745572244367,0.28596433,609.55,608.23,0.30175559]
[1745572244368,1.18584709,609.28,608.23,0.30175559]
[1745572244869,1.18584709,609.27,608.23,0.30175559]
[1745572245463,1.18584709,609.27,608.21,0.30175559]
[1745572245663,1.18584709,609.27,608.22,0.30175559]
[1745572245863,1.18584709,609.26,608.21,0.30175559]
[1745572246069,1.18584709,609.26,608.22,0.30175559]
[1745572246270,1.18584709,609.25,608.21,0.30175559]
[1745572246465,1.18584709,609.25,608.23,0.30175559]
[1745572246668,1.18584709,609.25,608.24,0.30175559]
[1745572246864,1.18584709,609.25,608.21,0.30175559]
[1745572247068,1.18584709,609.25,608.22,0.30175559]
[1745572247266,1.18584709,609.24,608.21,0.30175559]
[1745572247471,1.18584709,609.24,608.23,1.04107991]
[1745572247665,1.18584709,609.24,608.24,0.30175559]
[1745572248064,1.18584709,609.23,608.23,1.04107991]
[1745572248265,1.18584709,609.23,608.24,0.30175641]
[1745572248568,1.18584709,609.22,608.24,0.30175641]
[1745572248870,1.18584709,609.21,608.24,0.30175641]
[1745572249373,1.18584709,609.2,608.24,0.30175641]
[1745572249569,1.18584709,609.2,608.23,1.04107991]
[1745572249972,1.18584709,609.19,608.23,1.04107991]
[1745572250367,1.18584709,609.18,608.23,1.04107991]
[1745572250572,1.18584709,609.17,608.23,1.04107991]
[1745572251674,1.18584709,609.17,607.89,0.2859937]
[1745572251675,1.18584709,609.16,608.15,1.04107991]
[1745572252068,1.18584709,609.15,608.15,1.04107991]
[1745572252771,1.18584709,609.14,608.15,1.04107991]
[1745572253669,1.18584709,609.13,608.15,1.04107991]
[1745572254074,1.18584709,609.12,608.09,1.04107991]
[1745572254270,1.18584709,609.12,608.1,0.30176727]
[1745572254468,1.18584709,609.11,608.1,0.30176727]
[1745572255173,1.18584709,609.1,608.1,0.30176727]
[1745572255375,1.18584709,609.1,608.09,1.04107991]
[1745572255576,1.18584709,609.09,608.09,1.04107991]
[1745572256075,1.18584709,609.08,608.09,1.04107991]
[1745572256470,1.18584709,609.07,608.09,1.04107991]
[1745572256874,2.13310576,611.11,600.7,0.60193738]
[1745572256875,1.18584709,609.06,608.04,1.04107991]
[1745572257074,1.18584709,609.06,608.05,0.30177249]
[1745572257474,1.18584709,609.05,608.05,0.30177249]
[1745572257876,1.18584709,609.04,608.05,0.30177249]
[1745572258675,1.18584709,609.03,608.05,0.30177249]
[1745572258875,1.18584709,609.03,608.04,1.04107991]
[1745572258876,1.18584709,609.03,608.06,0.3017727]
[1745572259077,1.18584709,609.02,608.0,1.04107991]
[1745572259271,1.18584709,609.02,608.01,0.30177272]
[1745572259474,1.18584709,609.01,608.01,0.30177272]
[1745572259875,1.18584709,609.01,608.0,1.04107991]
[1745572260071,1.18584709,609.0,608.0,1.04107991]
[1745572260672,1.18584709,608.99,608.0,1.04107991]
[1745572260877,1.18584709,608.99,608.01,0.30176756]
[1745572261178,1.18584709,608.98,608.01,0.30176756]
[1745572261376,1.18584709,608.97,608.01,0.30176756]
[1745572261578,1.18584709,608.97,607.99,1.04107991]
[1745572261777,1.18584709,608.97,608.0,0.30177899]
[1745572262078,0.28602661,609.45,608.0,0.30177899]
[1745572262079,1.18584709,608.96,608.0,0.30177899]
[1745572262480,1.18584709,608.96,607.99,1.04107991]
[1745572262778,1.18584709,608.95,607.99,1.04107991]
[1745572262973,1.18584709,608.95,608.0,0.30176585]
[1745572263175,1.18584709,608.94,608.0,0.30176585]
[1745572263579,1.18584709,608.93,608.0,0.30176585]
[1745572264081,1.18584709,608.92,608.0,0.30176585]
[1745572264377,1.18584709,608.92,608.01,0.30175861]
[1745572264582,1.18584709,608.92,608.02,0.30175861]
[1745572264776,1.18584709,608.92,607.92,1.04107991]
[1745572264777,1.18584709,608.92,608.03,0.30175861]
[1745572264977,1.18584709,608.91,608.04,0.30175861]
[1745572265281,1.18584709,608.91,608.05,0.30175861]
[1745572265480,1.18584709,608.9,607.93,0.30175861]
[1745572265679,1.18584709,608.9,607.94,0.30175861]
[1745572265875,1.18584709,608.89,607.93,0.30175861]
[1745572266179,1.18584709,608.89,607.94,0.30175861]
[1745572266382,1.18584709,608.88,607.95,0.30175861]
[1745572266581,1.18584709,608.88,607.96,0.30175861]
[1745572266782,1.18584709,608.87,607.92,1.04107991]
[1745572267378,1.18584709,608.87,608.17,1.04107991]
[1745572267780,1.18584709,608.86,608.17,1.04107991]
[1745572268179,1.18584709,608.85,608.17,1.04107991]
[1745572268682,1.18584709,608.84,608.17,1.04107991]
[1745572269282,1.18584709,608.84,607.9,0.28603602]
[1745572269480,1.18584709,608.83,607.9,0.28603602]
[1745572269674,1.18584709,608.83,607.91,0.30179214]
[1745572269881,1.18584709,608.82,607.79,0.28612774]
[1745572270182,1.18584709,608.82,607.8,0.30181968]
[1745572270482,1.18584709,608.81,607.8,0.30181968]
[1745572270884,1.18584709,608.8,607.8,0.30181968]
[1745572271583,1.18584709,608.79,607.8,0.30181968]
[1745572271783,1.18584709,608.78,607.81,0.30181968]
[1745572271979,1.18584709,608.78,607.8,0.30181968]
[1745572272175,1.18584709,608.78,607.81,0.30181968]
[1745572272377,1.18584709,608.77,607.8,0.30181968]
[1745572272577,1.18584709,608.76,607.81,0.30181968]
[1745572272782,1.18584709,608.76,607.82,0.30181968]
[1745572272983,1.18584709,608.75,607.8,0.30181968]
[1745572273279,1.18584709,608.75,607.81,0.30181968]
[1745572273483,1.18584709,608.75,607.78,0.30181968]
[1745572273680,2.62320373,608.74,607.9,1.04107991]
[1745572273880,1.43735664,608.73,607.91,0.30181968]
[1745572274078,2.62320373,608.72,607.91,0.30181968]
[1745572274282,2.62320373,608.71,607.91,0.30181968]
[1745572274484,1.43735664,608.7,607.91,0.30181968]
[1745572274784,1.43735664,608.69,607.9,1.04107991]
[1745572274980,2.62320373,608.68,607.9,1.04107991]
[1745572275182,1.43735664,608.67,607.9,1.04107991]
[1745572275381,2.62320373,608.66,607.9,1.04107991]
[1745572275683,1.43735664,608.65,607.9,1.04107991]
[1745572275887,1.43735664,608.64,607.9,1.04107991]
[1745572276081,1.43735664,608.63,607.9,1.04107991]
[1745572276281,2.62320373,608.62,607.9,1.04107991]
[1745572276485,1.43735664,608.61,607.9,1.04107991]
[1745572276681,2.62320373,608.6,607.9,1.04107991]
[1745572276885,1.43735664,608.59,607.9,1.04107991]
[1745572277186,2.62320373,608.58,607.9,1.04107991]
[1745572277485,2.62320373,608.57,607.9,1.04107991]
[1745572277687,1.43735664,608.56,607.9,1.04107991]
[1745572277881,1.43735664,608.55,607.9,1.04107991]
[1745572278092,1.43735664,608.54,607.63,1.04107991]
[1745572278288,1.43735664,608.53,607.64,0.30192771]
[1745572278485,1.43735664,608.52,607.64,0.30192771]
[1745572278684,1.43735664,608.51,607.64,0.30192771]
[1745572278881,1.18584709,608.54,607.64,0.30192771]
[1745572278882,2.62320373,608.5,607.64,0.30192771]
[1745572279083,1.43735664,608.49,607.64,0.30192771]
[1745572279386,2.62320373,608.48,607.64,0.30192771]
[1745572279584,1.43735664,608.47,607.64,0.30192771]
[1745572279785,1.43735664,608.46,607.64,0.30192771]
[1745572279981,1.43735664,608.45,607.64,0.30192771]
[1745572280287,1.18584709,608.46,607.64,0.30192771]
[1745572280288,1.43735664,608.44,607.64,0.30192771]
[1745572280485,1.18584709,608.46,607.62,0.30192771]
[1745572280486,1.43735664,608.43,607.62,0.30192771]
[1745572280686,2.62320373,608.42,607.63,0.30192771]
[1745572280884,1.43735664,608.41,607.62,0.30192771]
[1745572281087,2.62320373,608.4,607.62,0.30192771]
[1745572281288,1.43735664,608.39,607.62,0.30192771]
[1745572281589,2.62320373,608.38,607.62,0.30192771]
[1745572281791,1.43735664,608.37,607.62,0.30192771]
[1745572281991,1.43735664,608.36,607.62,0.30192771]
[1745572282189,1.43735664,608.35,607.62,0.30192771]
[1745572282391,2.62320373,608.34,607.62,0.30192771]
[1745572282591,1.43735664,608.33,607.47,1.04107991]
[1745572282793,1.43735664,608.32,607.59,1.04107991]
[1745572282993,1.43735664,608.31,607.59,1.04107991]
[1745572283194,1.43735664,608.3,607.59,1.04107991]
[1745572283393,2.62320373,608.29,607.59,1.04107991]
[1745572283589,1.43735664,608.28,607.59,1.04107991]
[1745572283794,1.43735664,608.27,607.59,1.04107991]
[1745572283992,1.18584709,608.29,607.59,1.04107991]
[1745572284192,1.18584709,608.28,607.59,1.04107991]
[1745572284693,1.18584709,608.27,607.59,1.04107991]
[1745572285495,2.13310576,610.15,607.59,1.04107991]
[1745572285691,1.17003839,608.26,607.59,1.04107991]
[1745572285889,1.43016822,610.14,607.59,1.04107991]
[1745572285890,1.17003839,608.25,607.59,1.04107991]
[1745572286395,1.17003839,608.25,607.48,0.28626896]
[1745572286690,1.17003839,608.24,607.49,0.28626543]
[1745572287195,1.17003839,608.23,607.49,0.28626543]
[1745572287895,1.17003839,608.23,607.5,0.3019474]
[1745572288095,1.17003839,608.22,607.5,0.3019474]
[1745572288496,2.13310576,611.71,607.5,0.3019474]
[1745572288695,1.42911218,611.37,607.49,0.28626543]
[1745572288897,1.42911218,611.36,607.5,0.30185044]
[1745572289196,2.13310576,611.33,607.5,0.30185044]
[1745572289398,1.42911218,611.32,607.5,0.30185044]
[1745572289693,2.59869152,611.31,606.98,1.04107991]
[1745572289897,1.42911218,611.3,606.98,1.04107991]
[1745572290095,1.42911218,611.29,606.99,0.30190066]
[1745572290294,2.59869152,611.28,606.99,0.30190066]
[1745572290492,1.42911218,611.27,606.99,0.30190066]
[1745572290693,1.42911218,611.26,607.0,0.58783444]
[1745572290998,2.59869152,611.25,607.01,0.30190066]
[1745572291198,1.42911218,611.24,607.02,0.30190066]
[1745572291497,1.42911218,611.23,607.03,0.30190066]
[1745572291798,1.42911218,611.22,607.04,0.30190066]
[1745572291999,1.42911218,611.21,607.05,0.30190066]
[1745572292301,2.59869152,611.2,607.06,0.30190066]
[1745572292492,2.59869152,611.2,607.07,0.30190066]
[1745572292493,1.42911218,611.19,607.07,0.30190066]
[1745572292694,1.42911218,611.18,607.08,0.30190066]
[1745572292897,2.59869152,611.17,607.09,0.30190066]
[1745572293098,1.42911218,611.16,607.1,0.30190066]
[1745572293299,1.42911218,611.15,607.11,0.30190066]
[1745572293503,1.42911218,611.14,607.12,0.30190066]
[1745572293704,1.42911218,611.13,607.13,0.30190066]
[1745572293903,1.42911218,611.12,607.14,0.30190066]
[1745572294105,1.42911218,611.11,607.15,0.30190066]
[1745572294300,1.42911218,611.11,607.04,0.28591851]
[1745572294301,1.42911218,611.1,607.16,0.30190066]
[1745572294507,2.13310576,610.39,607.69,1.04107991]
[1745572294705,1.42911218,610.38,607.7,0.30190066]
[1745572294901,1.42911218,610.37,607.7,0.30190066]
[1745572295104,2.59869152,610.36,607.7,0.30190066]
[1745572295405,2.59869152,610.36,607.69,1.04107991]
[1745572295406,1.42911218,610.35,607.71,0.30190066]
[1745572295606,1.42911218,610.34,607.72,0.30190066]
[1745572295802,1.42911218,610.33,607.73,0.30190066]
[1745572295998,2.59869152,610.32,607.74,0.30190066]
[1745572296208,2.59869152,610.31,607.75,0.30190066]
[1745572296403,1.42911218,610.3,607.76,0.30190066]
[1745572296599,2.59869152,610.29,607.82,1.04107991]
[1745572296805,1.42911218,610.28,607.83,0.30190066]
[1745572297006,1.42911218,610.27,607.83,1.24090066]
[1745572297200,1.42911218,610.26,607.84,0.30190066]
[1745572297403,1.42911218,610.25,607.84,0.30190066]
[1745572297603,1.42911218,610.24,607.84,0.30190066]
[1745572297802,1.42911218,610.23,607.84,0.30190066]
[1745572298000,1.42911218,610.22,607.84,0.30190066]
[1745572298202,2.59869152,610.21,607.84,0.30190066]
[1745572298407,1.42911218,610.2,607.84,0.30190066]
[1745572298701,1.42911218,610.19,607.84,0.30190066]
[1745572298902,2.59869152,610.18,607.84,0.30190066]
[1745572299104,1.42911218,610.17,607.84,0.30190066]
[1745572299300,1.42911218,610.16,607.84,0.30190066]
[1745572299500,2.59869152,610.15,607.84,0.30190066]
[1745572299700,1.42911218,610.14,607.83,0.939]
[1745572299907,2.59869152,610.13,607.84,0.30174678]
[1745572300102,1.42911218,610.12,607.84,0.30174678]
[1745572300306,1.42911218,610.11,607.84,0.30174678]
[1745572300507,1.42911218,610.1,607.84,0.30174678]
[1745572300803,1.42911218,610.09,607.84,0.30174678]
[1745572301003,2.59869152,610.08,607.84,0.30174678]
[1745572301202,1.42911218,610.07,607.83,0.939]
[1745572301407,2.59869152,610.06,607.84,0.30173925]
[1745572301604,1.42911218,610.05,607.84,0.30173925]
[1745572301805,1.42911218,610.04,607.84,0.30173925]
[1745572302005,2.13310576,610.64,607.84,0.30173925]
[1745572302006,2.59869152,610.03,607.84,0.30173925]
[1745572302307,2.59869152,610.02,607.85,1.292]
[1745572302507,1.42911218,610.01,607.86,0.30173925]
[1745572302706,1.42911218,610.0,607.85,1.292]
[1745572302909,2.59869152,609.99,607.86,0.30177033]
[1745572303206,1.42911218,609.98,607.86,0.30177033]
[1745572303405,2.59869152,609.97,607.86,0.30177033]
[1745572303604,1.43019298,609.96,607.86,0.30177033]
[1745572303805,1.43019298,609.95,607.86,0.30177033]
[1745572304005,1.43019298,609.94,607.86,0.30177033]
[1745572304205,1.45552605,609.97,607.86,0.30177033]
[1745572304206,1.43019298,609.93,607.86,0.30177033]
[1745572304403,1.43019298,609.92,607.87,0.30177339]
[1745572304604,1.43019298,609.91,607.88,0.30177339]
[1745572304808,2.59977232,609.9,607.88,0.30177339]
[1745572305107,1.43019298,609.89,607.88,0.30177339]
[1745572305308,2.59977232,609.88,607.88,0.30177339]
[1745572305508,1.43019298,609.87,607.88,0.30177339]
[1745572305711,1.43019298,609.86,607.88,0.30177339]
[1745572306008,2.59977232,609.85,607.88,0.30177339]
[1745572306211,1.43019298,609.84,607.88,0.30177339]
[1745572306405,1.43019298,609.83,607.88,0.30177339]
[1745572306607,2.59977232,609.82,607.88,0.30177339]
[1745572306903,1.43019298,609.81,607.88,0.30177339]
[1745572307107,1.43019298,609.8,607.88,0.30177339]
[1745572307305,2.59977232,609.79,607.88,0.30177339]
[1745572307608,1.43019298,609.78,607.89,0.30174824]
[1745572307810,1.43019298,609.77,607.9,0.30174824]
[1745572308108,2.59977232,609.76,607.91,0.30174824]
[1745572308304,1.43019298,609.75,607.92,0.30174824]
[1745572308505,1.43019298,609.74,607.88,0.30174824]
[1745572308811,1.43019298,609.74,607.87,1.238]
[1745572308812,2.59977232,609.73,607.89,0.30174824]
[1745572309007,1.43019298,609.72,607.87,1.238]
[1745572309206,1.43019298,609.71,607.88,0.30174646]
[1745572309408,1.43019298,609.7,607.88,0.30174646]
[1745572309605,2.59977232,609.69,607.88,0.30174646]
[1745572309810,1.43019298,609.68,607.88,0.30174646]
[1745572310009,1.43019298,609.67,607.88,0.30174646]
[1745572310205,2.59977232,609.66,607.88,0.30174646]
[1745572310404,1.43019298,609.65,607.88,0.30174646]
[1745572310609,2.59977232,609.64,607.89,0.30174253]
[1745572310809,1.43019298,609.63,607.88,0.30174253]
[1745572311007,1.43019298,609.62,607.89,0.30174253]
[1745572311208,0.28594553,609.78,607.88,0.30174253]
[1745572311209,2.59977232,609.61,607.88,0.30174253]
[1745572311409,1.43019298,609.6,607.89,0.30174253]
[1745572311606,0.28594553,609.78,607.88,0.30174253]
[1745572311607,2.59977232,609.59,607.88,0.30174253]
[1745572311811,1.43019298,609.58,607.9,0.842]
[1745572312111,2.59977232,609.57,607.91,0.30174253]
[1745572312306,1.43019298,609.56,607.91,0.30174253]
[1745572312508,1.43019298,609.55,607.91,0.30174253]
[1745572312709,2.59977232,609.54,607.91,0.30174253]
[1745572313009,1.43019298,609.53,607.91,0.30174253]
[1745572313206,1.43019298,609.52,607.91,0.30174253]
[1745572313411,1.43019298,609.51,607.91,0.30174253]
[1745572313610,1.43019298,609.5,607.91,0.30174253]
[1745572313911,2.59977232,609.49,607.92,0.30172578]
[1745572314112,1.43019298,609.48,607.91,0.30172578]
[1745572314411,2.59977232,609.47,607.92,0.30172578]
[1745572314612,1.43019298,609.46,607.91,0.30172578]
[1745572314811,1.43019298,609.45,607.92,0.30172578]
[1745572315112,1.43019298,609.44,607.93,0.30172578]
[1745572315306,1.43019298,609.43,607.9,0.842]
[1745572315509,2.59977232,609.42,607.91,0.30171952]
[1745572315809,1.43019298,609.41,607.91,0.30171952]
[1745572316008,2.59977232,609.4,607.91,0.30171952]
[1745572316211,1.43019298,609.39,607.91,0.30171952]
[1745572316408,1.43019298,609.38,607.91,0.30171952]
[1745572316606,2.59977232,609.37,607.91,0.30171952]
[1745572316807,1.43019298,609.36,607.91,0.30171952]
[1745572317005,1.43019298,609.35,607.91,0.30171952]
[1745572317212,1.43019298,609.34,607.91,0.30171952]
[1745572317411,1.43019298,609.33,607.91,0.30171952]
[1745572317611,1.43019298,609.32,607.91,0.30171952]
[1745572317811,2.59977232,609.31,607.91,0.30171952]
[1745572318011,1.43019298,609.3,607.91,0.30171952]
[1745572318214,1.43019298,609.29,607.91,0.30171952]
[1745572318412,1.43019298,609.28,607.9,0.842]
[1745572318613,1.43019298,609.27,607.91,0.30179033]
[1745572318812,1.43019298,609.26,607.91,0.30179033]
[1745572319014,2.59977232,609.25,607.91,0.30179033]
[1745572319213,1.43019298,609.24,607.91,0.30179033]
[1745572319414,1.43019298,609.23,607.91,0.30179033]
[1745572319612,1.43019298,609.22,607.91,0.30179033]
[1745572319909,2.59977232,609.21,607.9,0.842]
[1745572320115,1.43019298,609.2,607.91,0.30175433]
[1745572320316,1.43019298,609.19,607.91,0.30175433]
[1745572320509,1.43019298,609.18,607.91,0.30175433]
[1745572320713,2.59977232,609.17,607.91,0.30175433]
[1745572320908,1.43019298,609.16,607.91,0.30175433]
[1745572321115,2.59977232,609.15,607.91,0.30175433]
[1745572321314,1.43019298,609.14,607.91,0.30175433]
[1745572321514,1.42956549,609.13,607.91,0.30175433]
[1745572321715,2.59914483,609.12,607.91,0.30175433]
[1745572321916,1.42956549,609.11,607.91,0.30175433]
[1745572322116,1.42956549,609.1,607.91,0.30175433]
[1745572322318,1.42956549,609.09,607.91,0.30175433]
[1745572322617,2.59914483,609.08,607.91,0.30175433]
[1745572322817,1.42956549,609.07,607.91,0.30175433]
[1745572323016,1.42956549,609.06,607.91,0.30175433]
[1745572323312,1.42956549,609.05,607.91,0.30175433]
[1745572323509,2.59914483,609.04,607.91,0.30175433]
[1745572323711,2.59914483,609.03,607.91,0.30175433]
[1745572323914,2.59914483,609.02,607.91,0.30175433]
[1745572324114,1.42956549,609.01,607.91,0.30175433]
[1745572324321,1.42956549,609.0,607.91,0.30175433]
[1745572324513,1.42956549,608.99,607.91,0.30175433]
[1745572324718,2.59914483,608.98,607.91,0.30175433]
[1745572324920,1.42956549,608.97,607.91,0.30175433]
[1745572325118,2.59907423,608.96,607.91,0.30175433]
[1745572325317,1.42949489,608.95,607.91,0.30175433]
[1745572325519,1.42949489,608.94,607.91,0.30175433]
[1745572325713,1.42949489,608.93,607.92,1.04107991]
[1745572325911,1.42949489,608.92,607.93,0.30175433]
[1745572326111,1.42949489,608.91,607.93,0.30175433]
[1745572326317,2.59907423,608.9,607.93,0.30175433]
[1745572326517,1.42949489,608.89,607.93,0.30175433]
[1745572326718,1.42949489,608.88,607.93,0.30175433]
[1745572326914,1.42949489,608.87,607.93,0.30175433]
[1745572327218,1.42949489,608.86,607.93,0.30175433]
[1745572327418,1.42949489,608.85,607.93,0.30175433]
[1745572327720,1.42949489,608.84,607.93,0.30175433]
[1745572327913,2.59907423,608.83,607.93,0.30175433]
[1745572328220,1.42949489,608.82,607.93,0.30175433]
[1745572328420,1.42949489,608.81,607.93,0.30175433]
[1745572328621,1.42949489,608.8,607.91,0.30175433]
[1745572328822,1.42949489,608.79,607.92,0.30175433]
[1745572329020,1.42949489,608.78,607.91,0.30175433]
[1745572329216,1.16957934,608.79,607.91,0.30175433]
[1745572329217,1.42949489,608.77,607.91,0.30175433]
[1745572329420,2.59907423,608.76,607.91,0.30175433]
[1745572329621,1.42949489,608.75,607.91,0.30175433]
[1745572329822,2.59907423,608.74,607.91,0.30175433]
[1745572330022,1.42949489,608.73,607.91,0.30175433]
[1745572330321,1.42949489,608.72,607.91,0.30175433]
[1745572330518,1.42949489,608.71,607.91,0.30175433]
[1745572330743,1.42949489,608.7,608.02,1.04107991]
[1745572330923,1.42949489,608.69,608.02,1.04107991]
[1745572331124,1.42949489,608.68,608.02,1.04107991]
[1745572331320,1.42949489,608.67,608.02,1.04107991]
[1745572331526,1.42949489,608.66,608.02,1.04107991]
[1745572331725,1.42949489,608.65,608.02,1.04107991]
[1745572331922,1.42949489,608.64,608.02,1.04107991]
[1745572332122,2.59907423,608.63,608.02,1.04107991]
[1745572332322,1.42935941,608.62,608.02,1.04107991]
[1745572332522,1.42935941,608.61,608.02,1.04107991]
[1745572332727,1.16957934,608.6,608.02,1.04107991]
[1745572332927,1.16957934,608.59,608.02,1.04107991]
[1745572333124,1.16957934,608.59,607.83,0.28609245]
[1745572333332,1.16957934,608.59,607.87,0.301799]
[1745572333528,1.16957934,608.58,607.87,0.301799]
[1745572333830,1.16957934,608.58,607.83,0.28609245]
[1745572334125,2.13310576,610.84,607.87,0.30179898]
[1745572334126,1.16957934,608.57,607.87,0.30179898]
[1745572334730,1.16957934,608.56,607.87,0.30179898]
[1745572334928,1.16957934,608.55,607.87,0.30179898]
[1745572335332,1.16957934,608.54,607.87,0.30179898]
[1745572335530,1.16957934,608.54,607.88,0.30179694]
[1745572335831,2.13310576,610.82,607.88,0.30179694]
[1745572336032,1.42961978,610.81,607.87,0.30179694]
[1745572336227,1.42961978,610.8,607.88,0.30179694]
[1745572336433,1.42961978,610.79,607.84,0.30179694]
[1745572336634,1.42961978,610.78,607.84,0.30179694]
[1745572336835,1.42961978,610.77,607.84,0.30179694]
[1745572337033,2.59912673,610.76,607.84,0.30179694]
[1745572337229,1.42961978,610.75,607.84,0.30179694]
[1745572337432,2.59912673,610.74,607.84,0.30179694]
[1745572337632,1.42961978,610.73,607.84,0.30179694]
[1745572337831,1.42961978,610.72,607.84,0.30179694]
[1745572338030,1.42961978,610.71,607.84,0.30179694]
[1745572338228,2.59912673,610.7,607.85,1.172]
[1745572338432,2.13310576,610.66,607.9,1.04107991]
[1745572338629,1.42961978,610.65,607.91,0.3017886]
[1745572338833,2.13310576,610.66,607.91,0.3017886]
[1745572339431,2.60051493,610.65,607.91,0.3017886]
[1745572339631,1.4303577,610.64,607.91,0.3017886]
[1745572339834,1.4303577,610.63,607.91,0.3017886]
[1745572340032,1.4303577,610.62,607.91,0.3017886]
[1745572340238,1.4303577,610.61,607.91,0.3017886]
[1745572340434,1.17015723,610.65,607.91,0.3017886]
[1745572340435,1.4303577,610.6,607.91,0.3017886]
[1745572340630,1.4303577,610.59,607.91,0.3017886]
[1745572340839,1.4303577,610.58,607.91,0.3017886]
[1745572341035,2.60051493,610.57,607.91,0.3017886]
[1745572341232,2.13310576,610.35,608.04,1.04107991]